[Event "Saint Louis Masters"]
[Date "2024.12.03"]
[White "Mikaelyan, Arman"]
[Black "Khanin, Semen"]
[WhiteElo "2507"]
[BlackElo "2568"]
[Round "2.6"]
[Result "1/2-1/2"]
[TimeControl "5400+30"]

1. d4 {[%clk 01:25:42] [%emt 00:05:08]} d5 {[%clk 01:30:55] [%emt 00:00:15]} 2.
c4 {[%clk 01:25:50] [%emt 00:00:21]} e6 {[%clk 01:31:19] [%emt 00:00:06]} 3. Nc3
{[%clk 01:25:45] [%emt 00:00:34]} Nf6 {[%clk 01:31:43] [%emt 00:00:07]} 4. cxd5
{[%clk 01:25:15] [%emt 00:01:00]} exd5 {[%clk 01:32:09] [%emt 00:00:05]} 5. Bf4
{[%clk 01:25:27] [%emt 00:00:17]} c5 {[%clk 01:28:38] [%emt 00:04:01]} 6. Nf3
{[%clk 01:18:28] [%emt 00:07:28]} Nc6 {[%clk 01:28:30] [%emt 00:00:39]} 7. e3
{[%clk 01:18:01] [%emt 00:00:56]} c4 {[%clk 01:27:18] [%emt 00:01:43]} 8. Be2
{[%clk 01:16:36] [%emt 00:01:55]} Bb4 {[%clk 01:21:59] [%emt 00:05:49]} 9. O-O
{[%clk 01:16:29] [%emt 00:00:36]} O-O {[%clk 01:21:32] [%emt 00:00:58]} 10. Ne5
{[%clk 01:06:32] [%emt 00:10:26]} Ne7 {[%clk 01:12:24] [%emt 00:09:38]} 11. Bf3
{[%clk 00:50:10] [%emt 00:16:52]} Ne8 {[%clk 01:04:10] [%emt 00:08:45]} 12. h4
{[%clk 00:45:35] [%emt 00:05:05]} f6 {[%clk 01:00:30] [%emt 00:04:11]} 13. Ng4
{[%clk 00:45:20] [%emt 00:00:44]} Bf5 {[%clk 00:57:09] [%emt 00:03:51]} 14. h5
{[%clk 00:42:50] [%emt 00:03:01]} Bxc3 {[%clk 00:54:40] [%emt 00:02:59]} 15.
bxc3 {[%clk 00:43:13] [%emt 00:00:07]} Nd6 {[%clk 00:54:33] [%emt 00:00:36]} 16.
Bxd6 {[%clk 00:34:46] [%emt 00:08:56]} Qxd6 {[%clk 00:54:50] [%emt 00:00:13]}
17. a4 {[%clk 00:35:09] [%emt 00:00:08]} b6 {[%clk 00:51:45] [%emt 00:03:36]}
18. Re1 {[%clk 00:33:55] [%emt 00:01:43]} a6 {[%clk 00:46:01] [%emt 00:06:15]}
19. Nh2 {[%clk 00:30:26] [%emt 00:03:58]} b5 {[%clk 00:43:45] [%emt 00:02:46]}
20. Nf1 {[%clk 00:29:08] [%emt 00:01:49]} b4 {[%clk 00:34:12] [%emt 00:10:04]}
21. cxb4 {[%clk 00:29:03] [%emt 00:00:35]} Rab8 {[%clk 00:34:27] [%emt
00:00:14]} 22. Ng3 {[%clk 00:28:36] [%emt 00:00:56]} Bd3 {[%clk 00:30:05] [%emt
00:04:53]} 23. e4 {[%clk 00:25:22] [%emt 00:03:45]} Rxb4 {[%clk 00:28:56] [%emt
00:01:38]} 24. exd5 {[%clk 00:21:17] [%emt 00:04:35]} Nxd5 {[%clk 00:27:17]
[%emt 00:02:09]} 25. Ne4 {[%clk 00:21:07] [%emt 00:00:40]} Bxe4 {[%clk 00:21:01]
[%emt 00:06:46]} 26. Bxe4 {[%clk 00:21:28] [%emt 00:00:09]} Nf4 {[%clk 00:17:42]
[%emt 00:03:50]} 27. Qg4 {[%clk 00:18:46] [%emt 00:03:11]} Rb2 {[%clk 00:12:58]
[%emt 00:05:14]} 28. Re3 {[%clk 00:13:28] [%emt 00:05:48]} c3 {[%clk 00:04:23]
[%emt 00:09:05]} 29. g3 {[%clk 00:12:12] [%emt 00:01:46]} f5 {[%clk 00:04:10]
[%emt 00:00:44]} 30. Bxf5 {[%clk 00:11:43] [%emt 00:00:59]} Qf6 {[%clk 00:02:37]
[%emt 00:02:03]} 31. h6 {[%clk 00:08:25] [%emt 00:03:47]} g6 {[%clk 00:00:53]
[%emt 00:02:14]} 32. Qxf4 {[%clk 00:05:22] [%emt 00:03:33]} Qxf5 {[%clk
00:01:16] [%emt 00:00:07]} 33. Qxf5 {[%clk 00:03:36] [%emt 00:02:16]} Rxf5
{[%clk 00:01:43] [%emt 00:00:04]} 34. Rxc3 {[%clk 00:03:37] [%emt 00:00:28]}
Rfxf2 {[%clk 00:00:44] [%emt 00:01:29]} 35. Rc8+ {[%clk 00:04:01] [%emt
00:00:06]} Kf7 {[%clk 00:01:11] [%emt 00:00:03]} 36. Rf1 {[%clk 00:04:24] [%emt
00:00:07]} Rxf1+ {[%clk 00:01:36] [%emt 00:00:06]} 37. Kxf1 {[%clk 00:04:50]
[%emt 00:00:03]} g5 {[%clk 00:00:46] [%emt 00:01:20]} 38. Rc6 {[%clk 00:01:35]
[%emt 00:03:44]} Rb4 {[%clk 00:00:38] [%emt 00:00:39]} 39. Rxa6 {[%clk 00:01:53]
[%emt 00:00:12]} Rxd4 {[%clk 00:01:05] [%emt 00:00:03]} 40. Ke2 {[%clk 00:01:51]
[%emt 00:00:32]} Rb4 {[%clk 00:00:50] [%emt 00:00:46]} 41. Kf3 {[%clk 00:02:12]
[%emt 00:00:08]} Rc4 {[%clk 00:00:55] [%emt 00:00:25]} 42. Ke3 {[%clk 00:00:54]
[%emt 00:01:48]} Rg4 {[%clk 00:01:20] [%emt 00:00:05]} 43. Kf2 {[%clk 00:00:43]
[%emt 00:00:41]} Rb4 {[%clk 00:01:45] [%emt 00:00:06]} 44. a5 {[%clk 00:01:01]
[%emt 00:00:11]} Ra4 {[%clk 00:01:56] [%emt 00:00:20]} 45. Kf3 {[%clk 00:01:23]
[%emt 00:00:08]} Ke7 {[%clk 00:00:41] [%emt 00:01:44]} 46. Ke3 {[%clk 00:01:05]
[%emt 00:00:47]} Kf7 {[%clk 00:01:08] [%emt 00:00:04]} 47. Kd3 {[%clk 00:00:54]
[%emt 00:00:41]} g4 {[%clk 00:00:48] [%emt 00:00:51]} 48. Ke3 {[%clk 00:01:06]
[%emt 00:00:17]} Ke7 {[%clk 00:01:11] [%emt 00:00:07]} 49. Kd3 {[%clk 00:00:52]
[%emt 00:00:44]} Kf7 {[%clk 00:00:40] [%emt 00:01:01]} 50. Ke3 {[%clk 00:01:07]
[%emt 00:00:15]} Ke7 {[%clk 00:01:07] [%emt 00:00:03]} 51. Ra7+ {[%clk 00:00:33]
[%emt 00:01:04]} Kf6 {[%clk 00:01:29] [%emt 00:00:08]} 52. Rxh7 {[%clk 00:00:33]
[%emt 00:00:30]} Rxa5 {[%clk 00:01:43] [%emt 00:00:17]} 53. Rd7 {[%clk 00:00:35]
[%emt 00:00:27]} Rh5 {[%clk 00:01:22] [%emt 00:00:50]} 54. Rd6+ {[%clk 00:00:36]
[%emt 00:00:29]} Kg5 {[%clk 00:01:24] [%emt 00:00:28]} 55. Rd5+ {[%clk 00:00:45]
[%emt 00:00:22]} Kxh6 {[%clk 00:01:50] [%emt 00:00:04]} 56. Rxh5+ {[%clk
00:01:09] [%emt 00:00:06]} Kxh5 {[%clk 00:02:18] [%emt 00:00:03]} 57. Ke4 {[%emt
00:00:13]} 1/2-1/2

[Site "Europe Echecs"]

[Event "Saint Louis Masters"]
[Date "2024.12.03"]
[White "Stremavicius, Titas"]
[Black "Kacharava, Nikolozi"]
[WhiteElo "2567"]
[BlackElo "2510"]
[Round "2.7"]
[Result "1/2-1/2"]
[TimeControl "5400+30"]

1. Nf3 {[%clk 01:30:57] [%emt 00:00:02]} d5 {[%clk 01:29:46] [%emt 00:01:14]} 2.
e3 {[%clk 01:31:18] [%emt 00:00:08]} Nf6 {[%clk 01:29:21] [%emt 00:00:57]} 3. c4
{[%clk 01:31:40] [%emt 00:00:08]} e6 {[%clk 01:28:16] [%emt 00:01:34]} 4. Nc3
{[%clk 01:31:55] [%emt 00:00:15]} dxc4 {[%clk 01:25:47] [%emt 00:03:01]} 5. Bxc4
{[%clk 01:31:51] [%emt 00:00:32]} c5 {[%clk 01:25:50] [%emt 00:00:28]} 6. O-O
{[%clk 01:31:50] [%emt 00:00:30]} a6 {[%clk 01:25:02] [%emt 00:01:18]} 7. a4
{[%clk 01:32:03] [%emt 00:00:17]} Nc6 {[%clk 01:23:46] [%emt 00:01:46]} 8. Qe2
{[%clk 01:28:03] [%emt 00:04:29]} Be7 {[%clk 01:23:12] [%emt 00:01:04]} 9. Rd1
{[%clk 01:28:25] [%emt 00:00:08]} e5 {[%clk 01:18:23] [%emt 00:05:20]} 10. h3
{[%clk 01:04:41] [%emt 00:24:13]} O-O {[%clk 01:17:46] [%emt 00:01:09]} 11. d3
{[%clk 01:04:55] [%emt 00:00:16]} h6 {[%clk 01:11:30] [%emt 00:06:47]} 12. b3
{[%clk 01:00:41] [%emt 00:04:43]} Re8 {[%clk 01:07:21] [%emt 00:04:39]} 13. Nd2
{[%clk 00:52:22] [%emt 00:08:48]} Bf8 {[%clk 01:02:36] [%emt 00:05:16]} 14. Nde4
{[%clk 00:49:47] [%emt 00:03:03]} Be6 {[%clk 00:54:18] [%emt 00:08:49]} 15. Ba3
{[%clk 00:38:03] [%emt 00:12:14]} Nd7 {[%clk 00:45:55] [%emt 00:08:52]} 16. Qf3
{[%clk 00:37:55] [%emt 00:00:37]} Rb8 {[%clk 00:40:50] [%emt 00:05:36]} 17. Rab1
{[%clk 00:36:31] [%emt 00:01:54]} Qa5 {[%clk 00:37:22] [%emt 00:03:58]} 18. Bb2
{[%clk 00:34:02] [%emt 00:02:58]} b5 {[%clk 00:24:21] [%emt 00:13:32]} 19. axb5
{[%clk 00:21:40] [%emt 00:12:52]} axb5 {[%clk 00:24:43] [%emt 00:00:08]} 20. Ra1
{[%clk 00:21:59] [%emt 00:00:11]} bxc4 {[%clk 00:24:45] [%emt 00:00:29]} 21.
Rxa5 {[%clk 00:22:26] [%emt 00:00:02]} Nxa5 {[%clk 00:25:09] [%emt 00:00:05]}
22. dxc4 {[%clk 00:22:47] [%emt 00:00:09]} Rxb3 {[%clk 00:25:14] [%emt
00:00:26]} 23. Ba1 {[%clk 00:22:58] [%emt 00:00:19]} Nxc4 {[%clk 00:24:17] [%emt
00:01:27]} 24. Nd5 {[%clk 00:22:32] [%emt 00:00:56]} Rc8 {[%clk 00:19:59] [%emt
00:04:47]} 25. g4 {[%clk 00:22:50] [%emt 00:00:12]} Nd6 {[%clk 00:13:46] [%emt
00:06:43]} 26. Nxd6 {[%clk 00:09:09] [%emt 00:14:11]} Bxd6 {[%clk 00:14:14]
[%emt 00:00:02]} 27. Qe4 {[%clk 00:09:27] [%emt 00:00:12]} c4 {[%clk 00:10:30]
[%emt 00:04:15]} 28. Qc2 {[%clk 00:09:32] [%emt 00:00:24]} Bf8 {[%clk 00:06:39]
[%emt 00:04:21]} 29. Kg2 {[%clk 00:09:30] [%emt 00:00:31]} Rb5 {[%clk 00:04:31]
[%emt 00:02:39]} 30. Nc3 {[%clk 00:09:07] [%emt 00:00:53]} Ra5 {[%clk 00:03:14]
[%emt 00:01:46]} 31. Ne4 {[%clk 00:08:34] [%emt 00:01:03]} Rca8 {[%clk 00:02:05]
[%emt 00:01:39]} 32. Bc3 {[%clk 00:08:37] [%emt 00:00:27]} Ra3 {[%clk 00:02:23]
[%emt 00:00:13]} 33. Qe2 {[%clk 00:05:58] [%emt 00:03:09]} R8a7 {[%clk 00:01:16]
[%emt 00:01:38]} 34. Qf3 {[%clk 00:03:32] [%emt 00:02:55]} f6 {[%clk 00:01:31]
[%emt 00:00:16]} 35. Qe2 {[%clk 00:02:51] [%emt 00:01:11]} Nb6 {[%clk 00:01:13]
[%emt 00:00:47]} 36. Rd8 {[%clk 00:01:56] [%emt 00:01:25]} Nd5 {[%clk 00:01:03]
[%emt 00:00:41]} 37. Qd2 {[%clk 00:02:08] [%emt 00:00:18]} Ra2 {[%clk 00:01:08]
[%emt 00:00:25]} 38. Qc1 {[%clk 00:01:58] [%emt 00:00:40]} Rd7 {[%clk 00:00:34]
[%emt 00:01:04]} 39. Rxd7 Bxd7 {[%clk 00:01:03]} 40. Qb1 {[%clk 00:02:01] [%emt
00:00:05]} Ra3 {[%clk 00:01:03] [%emt 00:00:30]} 41. Qb7 {[%clk 00:01:21] [%emt
00:01:10]} Be6 {[%clk 00:01:17] [%emt 00:00:16]} 42. Qc6 {[%clk 00:01:17] [%emt
00:00:33]} Bf7 {[%clk 00:01:25] [%emt 00:00:22]} 43. Bd2 {[%clk 00:01:29] [%emt
00:00:18]} Rd3 {[%clk 00:01:06] [%emt 00:00:49]} 44. Ba5 {[%clk 00:00:50] [%emt
00:01:09]} Ne7 {[%clk 00:00:51] [%emt 00:00:46]} 45. Qc7 {[%clk 00:01:05] [%emt
00:00:15]} Bd5 {[%clk 00:00:48] [%emt 00:00:33]} 46. Kh2 {[%clk 00:00:35] [%emt
00:01:00]} Ng6 {[%clk 00:00:37] [%emt 00:00:41]} 47. Qc8 {[%clk 00:00:37] [%emt
00:00:28]} Rd1 {[%clk 00:00:46] [%emt 00:00:20]} 48. Ng3 {[%clk 00:00:51] [%emt
00:00:16]} Nh4 {[%clk 00:01:04] [%emt 00:00:13]} 49. e4 {[%clk 00:01:09] [%emt
00:00:12]} Nf3+ {[%clk 00:01:20] [%emt 00:00:14]} 50. Kg2 {[%clk 00:01:35] [%emt
00:00:03]} Nh4+ {[%clk 00:01:18] [%emt 00:00:33]} 51. Kh2 {[%clk 00:02:03]} Nf3+
{[%clk 00:01:13] [%emt 00:00:35]} 52. Kg2 {[%clk 00:02:31] [%emt 00:00:01]} Nh4+
{[%clk 00:01:32] [%emt 00:00:12]} 1/2-1/2

[Site "Europe Echecs"]

[Event "Saint Louis Masters"]
[Date "2024.12.03"]
[White "Nyzhnyk, Illya"]
[Black "Heimann, Mark"]
[WhiteElo "2564"]
[BlackElo "2459"]
[Round "2.8"]
[Result "1/2-1/2"]
[TimeControl "5400+30"]

1. d4 {[%clk 01:29:11] [%emt 00:01:48]} Nf6 {[%clk 01:30:55] [%emt 00:00:05]} 2.
Nf3 {[%clk 01:29:23] [%emt 00:00:18]} d5 {[%clk 01:31:17] [%emt 00:00:08]} 3. c4
{[%clk 01:29:26] [%emt 00:00:27]} e6 {[%clk 01:31:42] [%emt 00:00:05]} 4. Nc3
{[%clk 01:29:21] [%emt 00:00:35]} Bb4 {[%clk 01:31:32] [%emt 00:00:40]} 5. Qa4+
{[%clk 01:28:27] [%emt 00:01:23]} Nc6 {[%clk 01:31:56] [%emt 00:00:06]} 6. Bg5
{[%clk 01:28:51] [%emt 00:00:05]} h6 {[%clk 01:32:03] [%emt 00:00:24]} 7. Bxf6
{[%clk 01:29:15] [%emt 00:00:05]} Qxf6 {[%clk 01:32:29] [%emt 00:00:04]} 8. e3
{[%clk 01:29:40] [%emt 00:00:05]} O-O {[%clk 01:32:37] [%emt 00:00:23]} 9. Qb3
{[%clk 01:29:25] [%emt 00:00:45]} Rd8 {[%clk 01:28:05] [%emt 00:05:01]} 10. a3
{[%clk 01:28:14] [%emt 00:01:41]} dxc4 {[%clk 01:23:03] [%emt 00:05:32]} 11.
Qxc4 {[%clk 01:28:32] [%emt 00:00:12]} Bd6 {[%clk 01:22:23] [%emt 00:01:10]} 12.
Bd3 {[%clk 01:28:23] [%emt 00:00:38]} e5 {[%clk 01:20:16] [%emt 00:02:38]} 13.
d5 {[%clk 01:28:47] [%emt 00:00:06]} Nb8 {[%clk 01:20:18] [%emt 00:00:29]} 14.
O-O {[%clk 01:28:18] [%emt 00:00:58]} 1/2-1/2

[Site "Europe Echecs"]

[Event "Saint Louis Masters"]
[Date "2024.12.03"]
[White "Abrahamyan, Tatev"]
[Black "Robson, Ray"]
[WhiteElo "2304"]
[BlackElo "2700"]
[Round "2.9"]
[Result "0-1"]
[TimeControl "5400+30"]

1. e4 {[%clk 01:30:57] [%emt 00:00:03]} c5 {[%clk 01:30:51] [%emt 00:00:09]} 2.
Nf3 {[%clk 01:31:16] [%emt 00:00:12]} d6 {[%clk 01:31:10] [%emt 00:00:11]} 3. d4
{[%clk 01:31:41] [%emt 00:00:05]} cxd4 {[%clk 01:31:27] [%emt 00:00:12]} 4. Nxd4
{[%clk 01:32:08] [%emt 00:00:04]} Nf6 {[%clk 01:31:45] [%emt 00:00:12]} 5. Nc3
{[%clk 01:32:28] [%emt 00:00:11]} a6 {[%clk 01:31:57] [%emt 00:00:16]} 6. Be3
{[%clk 01:32:46] [%emt 00:00:12]} e5 {[%clk 01:32:02] [%emt 00:00:26]} 7. Nb3
{[%clk 01:33:04] [%emt 00:00:12]} Be6 {[%clk 01:32:04] [%emt 00:00:27]} 8. h3
{[%clk 01:33:17] [%emt 00:00:17]} Nc6 {[%clk 01:25:40] [%emt 00:06:55]} 9. f4
{[%clk 01:31:54] [%emt 00:01:53]} exf4 {[%clk 01:18:45] [%emt 00:07:25]} 10.
Bxf4 {[%clk 01:32:18] [%emt 00:00:06]} d5 {[%clk 01:17:28] [%emt 00:01:46]} 11.
exd5 {[%clk 01:17:10] [%emt 00:15:38]} Nxd5 {[%clk 01:17:43] [%emt 00:00:15]}
12. Nxd5 {[%clk 01:17:30] [%emt 00:00:11]} Bxd5 {[%clk 01:13:52] [%emt
00:04:20]} 13. Qe2+ {[%clk 01:12:06] [%emt 00:05:54]} Be6 {[%clk 01:12:38] [%emt
00:01:45]} 14. g3 {[%clk 01:00:16] [%emt 00:12:21]} Bb4+ {[%clk 01:01:25] [%emt
00:11:41]} 15. Bd2 {[%clk 00:49:39] [%emt 00:11:08]} Bxd2+ {[%clk 00:39:31]
[%emt 00:22:24]} 16. Qxd2 {[%clk 00:46:04] [%emt 00:04:06]} Qxd2+ {[%clk
00:39:33] [%emt 00:00:28]} 17. Kxd2 {[%clk 00:43:28] [%emt 00:03:06]} O-O-O+
{[%clk 00:38:44] [%emt 00:01:18]} 18. Bd3 {[%clk 00:41:11] [%emt 00:02:47]} Ne5
{[%clk 00:38:25] [%emt 00:00:49]} 19. Kc3 {[%clk 00:34:39] [%emt 00:07:02]} Nxd3
{[%clk 00:37:40] [%emt 00:01:15]} 20. cxd3 {[%clk 00:32:05] [%emt 00:03:04]} Rd6
{[%clk 00:38:03] [%emt 00:00:07]} 21. Rac1 {[%clk 00:20:43] [%emt 00:11:52]} Kb8
{[%clk 00:34:21] [%emt 00:04:11]} 22. Rhf1 {[%clk 00:10:18] [%emt 00:10:56]}
Rhd8 {[%clk 00:30:47] [%emt 00:04:04]} 23. Nc5 {[%clk 00:05:54] [%emt 00:04:54]}
Rc6 {[%clk 00:29:12] [%emt 00:02:04]} 24. Kd2 {[%clk 00:05:19] [%emt 00:01:05]}
Bxa2 {[%clk 00:28:09] [%emt 00:01:33]} 25. b3 {[%clk 00:05:16] [%emt 00:00:33]}
Rd5 {[%clk 00:27:54] [%emt 00:00:44]} 26. Ne4 {[%clk 00:02:54] [%emt 00:02:52]}
Rxc1 {[%clk 00:26:34] [%emt 00:01:50]} 27. Kxc1 {[%clk 00:02:54] [%emt
00:00:31]} Bxb3 {[%clk 00:26:15] [%emt 00:00:48]} 28. Rxf7 {[%clk 00:02:10]
[%emt 00:01:14]} Rc5+ {[%clk 00:26:17] [%emt 00:00:29]} 29. Nxc5 {[%clk
00:02:27] [%emt 00:00:13]} Bxf7 {[%clk 00:26:40] [%emt 00:00:07]} 30. Kb2 {[%clk
00:02:42] [%emt 00:00:15]} Kc7 {[%clk 00:26:49] [%emt 00:00:21]} 31. Kc3 {[%clk
00:02:50] [%emt 00:00:22]} a5 {[%clk 00:26:33] [%emt 00:00:46]} 32. Kd4 {[%emt
00:01:16]} 0-1

[Site "Europe Echecs"]

[Event "Saint Louis Masters"]
[Date "2024.12.03"]
[White "Sevian, Samuel"]
[Black "Harsha Bharathakoti"]
[WhiteElo "2696"]
[BlackElo "2531"]
[Round "2.10"]
[Result "1-0"]
[TimeControl "5400+30"]

1. c4 {[%clk 01:24:48] [%emt 00:06:11]} e6 {[%clk 01:27:22] [%emt 00:03:38]} 2.
Nc3 {[%clk 01:24:57] [%emt 00:00:21]} d5 {[%clk 01:27:20] [%emt 00:00:32]} 3. d4
{[%clk 01:25:18] [%emt 00:00:09]} Nf6 {[%clk 01:23:30] [%emt 00:04:20]} 4. cxd5
{[%clk 01:24:51] [%emt 00:00:57]} exd5 {[%clk 01:23:55] [%emt 00:00:06]} 5. Bg5
{[%clk 01:25:14] [%emt 00:00:07]} Bb4 {[%clk 01:19:50] [%emt 00:04:34]} 6. e3
{[%clk 01:24:59] [%emt 00:00:44]} h6 {[%clk 01:20:14] [%emt 00:00:07]} 7. Bh4
{[%clk 01:25:21] [%emt 00:00:08]} g5 {[%clk 01:19:45] [%emt 00:00:59]} 8. Bg3
{[%clk 01:25:44] [%emt 00:00:07]} h5 {[%clk 01:14:50] [%emt 00:05:25]} 9. Be5
{[%clk 01:25:56] [%emt 00:00:19]} Nbd7 {[%clk 01:00:06] [%emt 00:15:14]} 10.
Bxf6 {[%clk 01:25:57] [%emt 00:00:29]} Qxf6 {[%clk 00:54:24] [%emt 00:06:12]}
11. Qb3 {[%clk 01:26:08] [%emt 00:00:19]} Qb6 {[%clk 00:40:10] [%emt 00:14:43]}
12. h4 {[%clk 01:24:05] [%emt 00:02:33]} g4 {[%clk 00:39:39] [%emt 00:01:02]}
13. a3 {[%clk 01:18:43] [%emt 00:05:52]} Bd6 {[%clk 00:31:08] [%emt 00:09:02]}
14. Qc2 {[%clk 01:16:53] [%emt 00:02:19]} c6 {[%clk 00:31:32] [%emt 00:00:06]}
15. g3 {[%clk 01:16:06] [%emt 00:01:17]} Nf6 {[%clk 00:26:23] [%emt 00:05:39]}
16. Bd3 {[%clk 01:16:03] [%emt 00:00:33]} Be6 {[%clk 00:26:47] [%emt 00:00:05]}
17. Nge2 {[%clk 01:15:29] [%emt 00:01:04]} Qc7 {[%clk 00:26:58] [%emt 00:00:21]}
18. O-O {[%clk 01:11:53] [%emt 00:04:05]} Kf8 {[%clk 00:24:24] [%emt 00:03:04]}
19. Na4 {[%clk 01:04:42] [%emt 00:07:41]} Kg7 {[%clk 00:23:19] [%emt 00:01:34]}
20. b4 {[%clk 01:01:16] [%emt 00:03:57]} a5 {[%clk 00:19:38] [%emt 00:04:12]}
21. Rab1 {[%clk 00:55:36] [%emt 00:06:09]} axb4 {[%clk 00:18:23] [%emt
00:01:46]} 22. axb4 {[%clk 00:55:43] [%emt 00:00:23]} Qe7 {[%clk 00:13:48] [%emt
00:05:04]} 23. Nc5 {[%clk 00:49:59] [%emt 00:06:14]} Rhc8 {[%clk 00:11:30] [%emt
00:02:48]} 24. b5 {[%clk 00:38:40] [%emt 00:11:49]} cxb5 {[%clk 00:09:48] [%emt
00:02:12]} 25. Rxb5 {[%clk 00:39:01] [%emt 00:00:10]} Bd7 {[%clk 00:06:57] [%emt
00:03:20]} 26. Rxb7 {[%clk 00:34:14] [%emt 00:05:17]} Bxc5 {[%clk 00:07:23]
[%emt 00:00:04]} 27. dxc5 {[%clk 00:34:38] [%emt 00:00:07]} Qxc5 {[%clk
00:07:50] [%emt 00:00:03]} 28. Qb1 {[%clk 00:33:48] [%emt 00:01:20]} Qd6 {[%clk
00:04:55] [%emt 00:03:25]} 29. Nd4 {[%clk 00:27:44] [%emt 00:06:34]} Rab8 {[%clk
00:04:51] [%emt 00:00:34]} 30. Rxb8 {[%clk 00:26:43] [%emt 00:01:32]} Rxb8
{[%clk 00:04:12] [%emt 00:01:08]} 31. Qa1 {[%clk 00:27:08] [%emt 00:00:05]} Re8
{[%clk 00:04:06] [%emt 00:00:36]} 32. Kg2 {[%clk 00:27:03] [%emt 00:00:35]} Rb8
{[%clk 00:03:46] [%emt 00:00:51]} 33. Rc1 {[%clk 00:26:15] [%emt 00:01:18]} Rc8
{[%clk 00:03:24] [%emt 00:00:52]} 34. Rb1 {[%clk 00:26:03] [%emt 00:00:43]} Rb8
{[%clk 00:03:18] [%emt 00:00:35]} 35. Re1 {[%clk 00:25:44] [%emt 00:00:49]} Kg8
{[%clk 00:03:08] [%emt 00:00:39]} 36. Re2 {[%clk 00:25:44] [%emt 00:00:31]} Qe5
{[%clk 00:01:27] [%emt 00:02:12]} 37. Qa7 {[%clk 00:22:06] [%emt 00:04:07]} Rc8
{[%clk 00:01:55] [%emt 00:00:03]} 38. Rb2 {[%clk 00:21:48] [%emt 00:00:48]} Rc3
{[%clk 00:01:48] [%emt 00:00:36]} 39. Bc2 {[%clk 00:20:06] [%emt 00:02:12]} Kg7
{[%clk 00:00:38] [%emt 00:01:40]} 40. Qa1 {[%clk 00:19:45] [%emt 00:00:51]} Rc7
{[%clk 00:00:32] [%emt 00:00:36]} 41. Rb6 {[%clk 00:16:58] [%emt 00:03:17]} Kg8
{[%clk 00:00:59] [%emt 00:00:03]} 42. Bd3 {[%clk 00:17:16] [%emt 00:00:12]} Rc8
{[%clk 00:01:02] [%emt 00:00:27]} 43. Ra6 {[%clk 00:14:04] [%emt 00:03:42]} Ne4
{[%clk 00:00:58] [%emt 00:00:35]} 44. Ra7 {[%clk 00:12:24] [%emt 00:02:10]} Bf5
{[%clk 00:00:53] [%emt 00:00:34]} 45. Ra6 {[%clk 00:05:48] [%emt 00:07:06]} Bg6
{[%clk 00:00:46] [%emt 00:00:37]} 46. Qa5 {[%clk 00:05:07] [%emt 00:01:11]} Kh7
{[%clk 00:00:35] [%emt 00:00:42]} 47. Rb6 {[%clk 00:02:20] [%emt 00:03:17]} Rc3
{[%clk 00:00:33] [%emt 00:00:31]} 48. Qa6 {[%clk 00:00:41] [%emt 00:02:10]} Rxd3
{[%clk 00:00:34] [%emt 00:00:28]} 49. Qxd3 {[%clk 00:01:05] [%emt 00:00:06]}
Nxf2 {[%clk 00:01:02] [%emt 00:00:03]} 50. Qf1 {[%clk 00:00:35] [%emt 00:01:00]}
Qxe3 {[%clk 00:00:33] [%emt 00:00:58]} 51. Qxf2 {[%clk 00:00:41] [%emt
00:00:23]} Be4+ {[%clk 00:01:01] [%emt 00:00:03]} 52. Kg1 {[%clk 00:00:37] [%emt
00:00:34]} Qc1+ {[%clk 00:01:28] [%emt 00:00:03]} 53. Qf1 {[%clk 00:01:05] [%emt
00:00:03]} Qe3+ {[%clk 00:01:55] [%emt 00:00:02]} 54. Kh2 {[%clk 00:01:06] [%emt
00:00:30]} Qd2+ {[%clk 00:02:21] [%emt 00:00:04]} 55. Ne2 {[%clk 00:01:31] [%emt
00:00:06]} Bf3 {[%clk 00:02:44] [%emt 00:00:06]} 56. Qb1+ {[%clk 00:01:30] [%emt
00:00:31]} Be4 {[%clk 00:02:49] [%emt 00:00:25]} 57. Qf1 {[%clk 00:01:36] [%emt
00:00:24]} Bf3 {[%clk 00:03:16] [%emt 00:00:04]} 58. Qb1+ {[%clk 00:01:16] [%emt
00:00:50]} Be4 {[%clk 00:03:43] [%emt 00:00:02]} 59. Qb2 {[%clk 00:00:50] [%emt
00:00:56]} Qe3 {[%clk 00:01:05] [%emt 00:03:09]} 60. Ng1 {[%clk 00:00:36] [%emt
00:00:44]} d4 {[%clk 00:01:31] [%emt 00:00:03]} 61. Qe2 {[%clk 00:00:32] [%emt
00:00:33]} 1-0

[Site "Europe Echecs"]